fUSD/lending_fUSD_20250602
["ID","MTS","AMOUNT","RATE_DAILY","PERIOD"]
[363718557,1748842268183,-124.78220972,0.00019178,2]
[363718558,1748842268195,-302.35342581,0.00019178,2]
[363718559,1748842268205,-169.11757291,0.00019178,2]
[363718560,1748842268226,-250.88242709,0.00019178,2]
[363718561,1748842268236,-340.5882649,0.00019178,2]
[363718562,1748842268245,-420.0,0.00019178,2]
[363718563,1748842268255,-422.11335523,0.00019178,2]
[363718564,1748842268264,-444.51915762,0.00019178,2]
[363718565,1748842268274,-420.0,0.00019178,2]
[363718566,1748842268284,-420.0,0.00019178,2]
[363718567,1748842268294,-92.65449322,0.00019178,2]
[363718568,1748842268306,-465.85570604,0.00019178,2]
[363718569,1748842268316,-424.12968944,0.00019178,2]
[363718570,1748842268325,-420.0,0.00019178,2]
[363718571,1748842268334,-151.0,0.00019315,2]
[363718572,1748842268345,-566.45,0.00019315,2]
[363718573,1748842268354,-228.87575,0.00019315,2]
[363718574,1748842268363,-420.0,0.00019315,2]
[363718575,1748842268373,-158.40458407,0.00019452,2]
[363718576,1748842268381,-420.0,0.00019452,2]
[363718577,1748842268390,-331.99449335,0.00019589,2]
[363718578,1748842268401,-88.00550665,0.00019589,2]
[363718579,1748842268411,-420.0,0.00019726,2]
[363718580,1748842268419,-317.47,0.00019863,2]
[363718581,1748842268428,-10582.83851502,0.000199,2]
[363718582,1748842268439,-417.04469242,0.000199,2]
[363718583,1748842268450,-2683.06124818,0.000199,2]
[363718584,1748842268459,-303.538726,0.000199,2]
[363718585,1748842268468,-303.538726,0.000199,2]
[363718586,1748842268477,-10.95271351,0.000199,2]
[363718587,1748842268487,-140.04728649,0.000199,2]
[363718588,1748842268496,-151.0,0.000199,2]
[363718589,1748842268506,-1538.4096173,0.000199,2]
[363718590,1748842268520,-3412.21641668,0.000199,2]
[363718591,1748842268531,-151.0,0.000199,2]
[363718592,1748842268540,-227.711105,0.000199,2]
[363718593,1748842268550,-227.711105,0.000199,2]
[363718594,1748842268561,-151.0,0.000199,2]
[363718595,1748842268571,-854.991557,0.000199,2]
[363718596,1748842268581,-300.0,0.000199,7]
[363718597,1748842268591,-854.991557,0.000199,2]
[363718598,1748842268601,-1592.0,0.000199,2]
[363718599,1748842268610,-151.0,0.000199,2]
[363718600,1748842268620,-50516.2943117,0.000199,7]
[363718601,1748842268629,-6219.78290916,0.000199,2]
[363718602,1748842268639,-191.94393,0.000199,2]
[363718603,1748842268648,-191.94393,0.000199,2]
[363718604,1748842268658,-1207.04291,0.000199,2]
[363718605,1748842268668,-151.0,0.000199,2]
[363718606,1748842268679,-1207.04291,0.000199,2]
[363718607,1748842268689,-210.96940106,0.000199,3]
[363718608,1748842268699,-458.99077,0.000199,2]
[363718609,1748842268709,-458.99077,0.000199,2]
[363718610,1748842268719,-2000.0,0.000199,2]
[363718611,1748842268729,-6483.420928,0.000199,2]
[363718612,1748842268739,-6483.420928,0.000199,2]
[363718613,1748842268749,-2000.0,0.000199,2]
[363718614,1748842268759,-2000.0,0.000199,2]
[363718615,1748842268768,-2000.0,0.000199,2]
[363718616,1748842268778,-2000.0,0.000199,2]
[363718617,1748842268787,-6336.35932097,0.000199,2]
[363718618,1748842268796,-2000.0,0.000199,2]
[363718619,1748842268806,-2000.0,0.000199,2]
[363718620,1748842268814,-183.62680237,0.000199,2]
[363718621,1748842268824,-455.560203,0.00019951,2]
[363718622,1748842268832,-455.560203,0.00019951,2]
[363718623,1748842268840,-151.0,0.00019951,2]
[363718624,1748842268850,-151.0,0.00019951,2]
[363718625,1748842268859,-151.0,0.00019951,2]
[363718626,1748842268868,-151.0,0.00019951,2]
[363718627,1748842268878,-455.560203,0.00019952,2]
[363718628,1748842268887,-455.560203,0.00019952,2]
[363718629,1748842268897,-283.243604,0.00019952,2]
[363718630,1748842268907,-151.0,0.00019952,2]
[363718631,1748842268916,-151.0,0.00019952,2]
[363718632,1748842268926,-151.0,0.00019952,2]
[363718633,1748842268936,-151.0,0.00019952,2]
[363718634,1748842268946,-151.0,0.00019952,2]
[363718635,1748842268956,-151.0,0.00019952,2]
[363718636,1748842268966,-151.0,0.00019952,2]
[363718637,1748842268975,-151.0,0.00019952,2]
[363718638,1748842268985,-151.0,0.00019953,2]
[363718639,1748842268995,-151.0,0.00019953,2]
[363718640,1748842269005,-151.0,0.00019954,2]
[363718641,1748842269014,-153.479374,0.00019954,2]
[363718642,1748842269023,-173.4494362,0.00019955,2]
[363718643,1748842269033,-500.0,0.00019955,2]
[363718644,1748842269043,-521.47782919,0.00019955,2]
[363718645,1748842269053,-500.0,0.00019955,2]
[363718646,1748842269063,-290.38751807,0.00019955,2]
[363718647,1748842269072,-500.0,0.00019955,2]
[363718648,1748842269082,-500.0,0.00019955,2]
[363718649,1748842269092,-288.63328,0.00019956,2]
[363718650,1748842269102,-288.63328,0.00019956,2]
[363718651,1748842269111,-288.63328,0.00019956,2]
[363718652,1748842269121,-288.63328,0.00019956,2]
[363718653,1748842269130,-164.788118,0.00019956,2]
[363718654,1748842269140,-152.886491,0.00019956,2]
[363718655,1748842269150,-384.872406,0.00019956,2]
[363718656,1748842269160,-384.872406,0.00019956,2]
[363718657,1748842269169,-384.872406,0.00019956,2]
[363718658,1748842269179,-384.872406,0.00019956,2]
[363718659,1748842269189,-151.0,0.00019956,2]
[363718660,1748842269198,-151.0,0.00019956,2]
[363718661,1748842269208,-151.0,0.00019956,2]
[363718662,1748842269218,-151.0,0.00019956,2]
[363718663,1748842269228,-295.066286,0.00019956,2]
[363718664,1748842269237,-295.066286,0.00019956,2]
[363718665,1748842269247,-151.0,0.00019956,2]
[363718666,1748842269257,-151.0,0.00019956,2]
[363718667,1748842269266,-151.0,0.00019956,2]
[363718668,1748842269275,-153.98921,0.00019956,2]
[363718669,1748842269285,-151.0,0.00019956,2]
[363718670,1748842269294,-151.0,0.00019956,2]
[363718671,1748842269303,-151.0,0.00019956,2]
[363718672,1748842269312,-151.0,0.00019956,2]
[363718673,1748842269321,-455.560203,0.00019957,2]
[363718674,1748842269331,-455.560203,0.00019957,2]
[363718675,1748842269341,-288.63328,0.00019957,2]
[363718676,1748842269350,-288.63328,0.00019957,2]
[363718677,1748842269359,-171.200067,0.00019957,2]
[363718678,1748842269368,-384.872406,0.00019957,2]
[363718679,1748842269378,-384.872406,0.00019957,2]
[363718680,1748842269387,-151.0,0.00019957,2]
[363718681,1748842269397,-151.0,0.00019957,2]
[363718682,1748842269407,-151.0,0.00019957,2]
[363718683,1748842269416,-151.0,0.00019957,2]
[363718684,1748842269425,-151.0,0.00019957,2]
[363718685,1748842269435,-295.066286,0.00019957,2]
[363718686,1748842269443,-161.373656,0.00019957,2]
[363718687,1748842269452,-151.0,0.00019957,2]
[363718688,1748842269461,-151.0,0.00019957,2]
[363718689,1748842269471,-179.812481,0.00019957,2]
[363718690,1748842269480,-179.812481,0.00019957,2]
[363718691,1748842269489,-624.193866,0.00019957,2]
[363718692,1748842269500,-151.0,0.00019957,2]
[363718693,1748842269509,-624.193866,0.00019957,2]
[363718694,1748842269524,-160.214602,0.00019957,2]
[363718695,1748842269534,-151.0,0.00019957,2]
[363718696,1748842269543,-160.214602,0.00019957,2]
[363718697,1748842269555,-151.0,0.00019957,2]
[363718698,1748842269564,-557.0,0.00019959,2]
[363718699,1748842269574,-925.0,0.00019959,2]
[363718700,1748842269583,-588.0,0.00019959,2]
[363718701,1748842269593,-1271.0,0.00019959,2]
[363718702,1748842269604,-1157.0,0.00019959,2]
[363718703,1748842269613,-943.0,0.00019959,2]
[363718704,1748842269623,-230.969,0.00019959,2]
[363718705,1748842269632,-289.136,0.00019959,2]
[363718706,1748842269643,-4001.39288842,0.00019959,2]
[363718707,1748842269661,-420.0,0.00019315,2]
[363718708,1748842269671,-73.60711158,0.00019959,2]
[363718709,1748842269681,-506.39288842,0.00019959,2]
[363718710,1748842269693,-375.60711158,0.00019959,2]
[363718711,1748842269703,-455.560203,0.00019959,2]
[363718712,1748842269712,-168.83268542,0.00019959,2]
[363718713,1748842269723,-286.72751758,0.00019959,2]
[363718714,1748842269732,-288.63328,0.00019959,2]
[363718715,1748842269741,-288.63328,0.00019959,2]
[363718716,1748842269750,-384.872406,0.00019959,2]
[363718717,1748842269760,-384.872406,0.00019959,2]
[363718718,1748842269768,-160.023864,0.00019959,2]
[363718719,1748842269778,-151.0,0.00019959,2]
[363718720,1748842269787,-151.0,0.00019959,2]
[363718721,1748842269796,-151.0,0.00019959,2]
[363718722,1748842269805,-151.0,0.00019959,2]
[363718723,1748842269815,-295.066286,0.00019959,2]
[363718724,1748842269825,-151.0,0.00019959,2]
[363718725,1748842269834,-151.0,0.00019959,2]
[363718726,1748842269844,-3641.12,0.00019968,2]
[363718727,1748842269854,-500.0,0.00019968,2]
[363718728,1748842269863,-455.560203,0.00019969,2]
[363718729,1748842269873,-455.560203,0.00019969,2]
[363718730,1748842269882,-288.63328,0.00019969,2]
[363718731,1748842269891,-288.63328,0.00019969,2]
[363718732,1748842269901,-384.872406,0.00019969,2]
[363718733,1748842269911,-384.872406,0.00019969,2]
[363718734,1748842269921,-151.0,0.00019969,2]
[363718735,1748842269931,-151.0,0.00019969,2]
[363718736,1748842269940,-151.0,0.00019969,2]
[363718737,1748842269950,-151.0,0.00019969,2]
[363718738,1748842269960,-295.066286,0.00019969,2]
[363718739,1748842269968,-151.0,0.00019969,2]
[363718740,1748842269978,-151.0,0.00019969,2]
[363718741,1748842269987,-165.0,0.00019973,2]
[363718742,1748842269998,-500.0,0.00019973,2]
[363718743,1748842270007,-500.0,0.00019973,2]
[363718744,1748842270017,-321.8611605,0.00019973,2]
[363718745,1748842270027,-160.0,0.00019973,2]
[363718746,1748842270036,-163.69512731,0.00019973,2]
[363718747,1748842270046,-500.0,0.00019973,2]
[363718748,1748842270056,-159.67127281,0.00019973,2]
[363718749,1748842270066,-159.6685126,0.00019973,2]
[363718750,1748842270076,-500.0,0.00019973,2]
[363718751,1748842270086,-500.0,0.00019973,2]
[363718752,1748842270095,-475.69798695,0.00019973,2]
[363718753,1748842270105,-500.0,0.00019973,2]
[363718754,1748842270114,-500.0,0.00019973,2]
[363718755,1748842270124,-504.31485495,0.00019973,2]
[363718756,1748842270134,-500.0,0.00019973,2]
[363718757,1748842270144,-500.0,0.00019973,2]
[363718758,1748842270154,-500.36448212,0.00019973,2]
[363718759,1748842270164,-500.0,0.00019973,2]
[363718760,1748842270173,-504.18191463,0.00019973,2]
[363718761,1748842270183,-500.36524972,0.00019973,2]
[363718762,1748842270193,-500.0,0.00019973,2]
[363718763,1748842270202,-511.33312288,0.00019973,2]
[363718764,1748842270212,-500.0,0.00019973,2]
[363718765,1748842270221,-500.0,0.00019973,2]
[363718766,1748842270231,-4.69921195,0.00019973,2]
[363718767,1748842270244,-495.30078805,0.00019973,2]
[363718768,1748842270253,-500.0,0.00019973,2]
[363718769,1748842270263,-319.0400017,0.00019973,2]
[363718770,1748842270272,-103.82790725,0.00019973,2]
[363718771,1748842270284,-95.74356736,0.00019973,2]
[363718772,1748842270293,-159.66018677,0.00019973,2]
[363718773,1748842270303,-500.0,0.00019973,2]
[363718774,1748842270313,-500.0,0.00019973,2]
[363718775,1748842270323,-500.0,0.00019973,2]
[363718776,1748842270332,-500.0,0.00019973,2]
[363718777,1748842270341,-161.11255661,0.00019973,2]
[363718778,1748842270351,-212.17602755,0.00019973,2]
[363718779,1748842270360,-500.0,0.00019973,2]
[363718780,1748842270369,-317.03951013,0.00019973,2]
[363718781,1748842270379,-507.4638945,0.00019973,2]
[363718782,1748842270388,-133.47318889,0.00019973,2]
[363718783,1748842270400,-366.52681111,0.00019973,2]
[363718784,1748842270410,-305.52131959,0.00019973,2]
[363718785,1748842270420,-154.02302048,0.00019973,2]
[363718786,1748842270430,-502.9260479,0.00019973,2]
[363718787,1748842270439,-288.63328,0.00019973,2]
[363718788,1748842270449,-288.63328,0.00019973,2]
[363718789,1748842270458,-157.809,0.00019973,2]
[363718790,1748842270467,-1341.896,0.00019973,2]
[363718791,1748842270477,-455.560203,0.0001998,2]
[363718792,1748842270486,-455.560203,0.0001998,2]
[363718793,1748842270497,-288.63328,0.0001998,2]
[363718794,1748842270507,-288.63328,0.0001998,2]
[363718795,1748842270519,-384.872406,0.0001998,2]
[363718796,1748842270529,-384.872406,0.0001998,2]
[363718797,1748842270539,-151.0,0.0001998,2]
[363718798,1748842270548,-151.0,0.0001998,2]
[363718799,1748842270559,-151.924512,0.0001998,2]
[363718800,1748842270569,-215.621373,0.0001998,2]
[363718801,1748842270578,-295.066286,0.0001998,2]
[363718802,1748842270588,-151.0,0.0001998,2]
[363718803,1748842270601,-192.36857,0.0001998,2]
[363718804,1748842270611,-183.46263567,0.0001998,2]
[363718805,1748842270621,-350.0,0.0001998,2]
[363718806,1748842270631,-658.54003397,0.00019985,2]
[363718807,1748842270640,-1236.5882691,0.00019987,2]
[363718808,1748842270650,-1000.0,0.00019988,2]
[363718809,1748842270659,-1000.0,0.00019988,2]
[363718810,1748842270668,-1000.0,0.00019988,2]
[363718811,1748842270678,-155.96558712,0.00019989,2]
[363718812,1748842270688,-455.560203,0.00019994,2]
[363718813,1748842270698,-455.560203,0.00019994,2]
[363718814,1748842270707,-288.63328,0.00019994,2]
[363718815,1748842270716,-288.63328,0.00019994,2]
[363718816,1748842270726,-384.872406,0.00019994,2]
[363718817,1748842270735,-384.872406,0.00019994,2]
[363718818,1748842270744,-151.0,0.00019994,2]
[363718819,1748842270754,-151.0,0.00019994,2]
[363718820,1748842270763,-295.066286,0.00019994,2]
[363718821,1748842270773,-151.0,0.00019994,2]
[363718822,1748842270783,-455.560203,0.00019996,2]
[363718823,1748842270792,-455.560203,0.00019996,2]
[363718824,1748842270801,-455.560203,0.00019996,2]
[363718825,1748842270811,-455.560203,0.00019996,2]
[363718826,1748842270820,-455.560203,0.00019996,2]
[363718827,1748842270829,-455.5602,0.00019996,2]
[363718828,1748842270839,-288.63328,0.00019996,2]
[363718829,1748842270848,-288.63328,0.00019996,2]
[363718830,1748842270857,-288.63328,0.00019996,2]
[363718831,1748842270867,-288.633277,0.00019996,2]
[363718832,1748842270875,-384.872406,0.00019996,2]
[363718833,1748842270884,-384.872406,0.00019996,2]
[363718834,1748842270894,-384.872406,0.00019996,2]
[363718835,1748842270903,-384.872406,0.00019996,2]
[363718836,1748842270912,-384.872406,0.00019996,2]
[363718837,1748842270922,-384.872399,0.00019996,2]
[363718838,1748842270931,-151.0,0.00019996,2]
[363718839,1748842270941,-151.0,0.00019996,2]
[363718840,1748842270950,-151.0,0.00019996,2]
[363718841,1748842270959,-231.560958,0.00019996,2]
[363718842,1748842270969,-295.066286,0.00019996,2]
[363718843,1748842270978,-295.066286,0.00019996,2]
[363718844,1748842270987,-295.066286,0.00019996,2]
[363718845,1748842270997,-295.066286,0.00019996,2]
[363718846,1748842271006,-295.066286,0.00019996,2]
[363718847,1748842271016,-295.066289,0.00019996,2]
[363718848,1748842271025,-151.0,0.00019996,2]
[363718849,1748842271034,-151.0,0.00019996,2]
[363718850,1748842271044,-151.0,0.00019996,2]
[363718851,1748842271053,-151.0,0.00019996,2]
[363718852,1748842271062,-151.0,0.00019996,2]
[363718853,1748842271071,-151.0,0.00019996,2]
[363718854,1748842271081,-151.0,0.00019996,2]
[363718855,1748842271090,-151.0,0.00019996,2]
[363718856,1748842271099,-208.031636,0.00019996,2]
[363718857,1748842271109,-208.031636,0.00019996,2]
[363718858,1748842271119,-151.0,0.00019996,2]
[363718859,1748842271129,-151.0,0.00019996,2]
[363718860,1748842271139,-151.0,0.00019996,2]
[363718861,1748842271148,-151.0,0.00019996,2]
[363718862,1748842271158,-151.0,0.00019996,2]
[363718863,1748842271167,-151.0,0.00019996,2]
[363718864,1748842271177,-179.812481,0.00019996,2]
[363718865,1748842271186,-179.812481,0.00019996,2]
[363718866,1748842271195,-151.0,0.00019996,2]
[363718867,1748842271204,-151.0,0.00019996,2]
[363718868,1748842271214,-153.342187,0.00019996,2]
[363718869,1748842271225,-197.956287,0.00019996,2]
[363718870,1748842271235,-197.956287,0.00019996,2]
[363718871,1748842271244,-151.0,0.00019996,2]
[363718872,1748842271253,-197.956287,0.00019996,2]
[363718873,1748842271263,-197.956287,0.00019996,2]
[363718874,1748842271272,-303.538726,0.00019996,2]
[363718875,1748842271283,-303.538726,0.00019996,2]
[363718876,1748842271292,-9734.9217445,0.00019996,2]
[363718877,1748842271303,-624.193866,0.00019996,2]
[363718878,1748842271314,-151.0,0.00019996,2]
[363718879,1748842271325,-624.193866,0.00019996,2]
[363718880,1748842271499,-151.0,0.00019996,2]
[363718881,1748842271510,-151.0,0.00019996,2]
[363718882,1748842271524,-155.381859,0.00019996,2]
[363718883,1748842271534,-227.711105,0.00019996,2]
[363718884,1748842271543,-227.711105,0.00019996,2]
[363718885,1748842271553,-151.0,0.00019996,2]
[363718886,1748842271563,-151.0,0.00019996,2]
[363718887,1748842271572,-160.214602,0.00019996,2]
[363718888,1748842271582,-151.0,0.00019996,2]
[363718889,1748842271595,-151.0,0.00019996,2]
[363718890,1748842271606,-160.214602,0.00019996,2]
[363718891,1748842271616,-30827.5630781,0.00019996,2]
[363718892,1748842271627,-151.0,0.00019996,2]
[363718893,1748842271635,-151.0,0.00019996,2]
[363718894,1748842271646,-854.991557,0.00019996,2]
[363718895,1748842271656,-854.991557,0.00019996,2]
[363718896,1748842271665,-854.991557,0.00019996,2]
[363718897,1748842271675,-854.991562,0.00019996,2]
[363718898,1748842271684,-154.922268,0.00019996,2]
[363718899,1748842271696,-1812.2025087,0.00019996,2]
[363718900,1748842271707,-191.94393,0.00019996,2]
[363718901,1748842271717,-191.943928,0.00019996,2]
[363718902,1748842271729,-1017.8887828,0.00019996,2]
[363718903,1748842271739,-1207.04291,0.00019996,2]
[363718904,1748842271748,-1207.04291,0.00019996,2]
[363718905,1748842271758,-1207.04291,0.00019996,2]
[363718906,1748842271767,-1207.04291,0.00019996,2]
[363718907,1748842271776,-458.99077,0.00019996,2]
[363718908,1748842271786,-458.99077,0.00019996,2]
[363718909,1748842271795,-458.99077,0.00019996,2]
[363718910,1748842271804,-458.990775,0.00019996,2]
[363718911,1748842271814,-6483.420928,0.00019996,2]
[363718912,1748842271823,-6483.420927,0.00019996,2]
[363718913,1748842271832,-562.41141463,0.00019998,2]
[363718914,1748842271841,-304.20113606,0.00019998,2]
[363718915,1748842271851,-3641.12,0.00019998,2]
[363718916,1748842271860,-500.0,0.00019998,2]
[363718917,1748842271870,-300.0,0.00019998,2]
[363718918,1748842271880,-500.0,0.00019998,2]
[363718919,1748842271890,-300.0,0.00019998,2]
[363718920,1748842271900,-300.0,0.00019998,2]
[363718921,1748842271910,-300.0,0.00019998,2]
[363718922,1748842271920,-861.0,0.00019999,2]
[363718923,1748842271929,-300.0,0.00019999,2]
[363718924,1748842271939,-300.0,0.00019999,2]
[363718925,1748842271948,-300.0,0.00019999,2]
[363718926,1748842271958,-300.0,0.00019999,2]
[363718927,1748842271967,-300.0,0.00019999,2]
[363718928,1748842271976,-500.0,0.00019999,2]
[363718929,1748842271986,-500.0,0.00019999,2]
[363718930,1748842271996,-500.0,0.00019999,2]
[363718931,1748842272006,-502.40891739,0.00019999,2]
[363718932,1748842272015,-500.0,0.00019999,2]
[363718933,1748842272026,-500.0,0.00019999,2]
[363718934,1748842272036,-500.0,0.00019999,2]
[363718935,1748842272045,-504.3662703,0.00019999,2]
[363718936,1748842272056,-285.2,0.00019999,2]
[363718937,1748842272065,-151.0,0.00019999,2]
[363718938,1748842272075,-151.0,0.00019999,2]
[363718939,1748842272087,-151.0,0.00019999,2]
[363718940,1748842272097,-516.53,0.00019999,2]
[363718941,1748842272106,-500.0,0.00019999,2]
[363718942,1748842272115,-500.0,0.00019999,2]
[363718943,1748842272125,-500.0,0.00019999,2]
[363718944,1748842272134,-609.61221498,0.00019999,2]
[363718945,1748842272144,-151.0,0.00019999,2]
[363718946,1748842272154,-207.636476,0.00019999,2]
[363718947,1748842272163,-500.0,0.00019999,2]
[363718948,1748842272173,-500.0,0.00019999,2]
[363718949,1748842272183,-500.0,0.00019999,2]
[363718950,1748842272193,-500.0,0.00019999,2]
[363718951,1748842272202,-500.0,0.00019999,2]
[363718952,1748842272212,-500.0,0.00019999,2]
[363718953,1748842272222,-354.8,0.00019999,2]
[363718954,1748842272232,-3641.12,0.00019999,2]
[363718955,1748842272242,-3641.12,0.00019999,2]
[363718956,1748842272253,-3641.12,0.00019999,2]
[363718957,1748842272263,-3641.12,0.00019999,2]
[363718958,1748842272273,-3641.12,0.00019999,2]
[363718959,1748842272282,-3641.12,0.00019999,2]
[363718960,1748842272292,-3641.12,0.00019999,2]
[363718961,1748842272301,-3641.12,0.00019999,2]
[363718962,1748842272311,-3641.12,0.00019999,2]
[363718963,1748842272321,-3641.12,0.00019999,2]
[363718964,1748842272330,-3641.12,0.00019999,2]
[363718965,1748842272339,-3641.12,0.00019999,2]
[363718966,1748842272349,-3641.12,0.00019999,2]
[363718967,1748842272358,-3641.12,0.00019999,2]
[363718968,1748842272368,-3641.12,0.00019999,2]
[363718969,1748842272378,-3641.12,0.00019999,2]
[363718970,1748842272387,-3641.12,0.00019999,2]
[363718971,1748842272396,-3641.12,0.00019999,2]
[363718972,1748842272407,-3641.24,0.00019999,2]
[363718973,1748842272416,-151.0,0.00019999,2]
[363718974,1748842272426,-237.427593,0.00019999,2]
[363718975,1748842272436,-500.0,0.00019999,2]
[363718976,1748842272446,-500.0,0.00019999,2]
[363718977,1748842272456,-500.0,0.00019999,2]
[363718978,1748842272465,-500.0,0.00019999,2]
[363718979,1748842272475,-500.0,0.00019999,2]
[363718980,1748842272484,-500.0,0.00019999,2]
[363718981,1748842272494,-500.0,0.00019999,2]
[363718982,1748842272503,-500.0,0.00019999,2]
[363718983,1748842272513,-500.0,0.00019999,2]
[363718984,1748842272527,-500.0,0.00019999,2]
[363718985,1748842272537,-500.0,0.00019999,2]
[363718986,1748842272547,-500.0,0.00019999,2]
[363718987,1748842272557,-234.73840937,0.00019999,2]
[363718988,1748842272567,-511.2981007,0.00019999,2]
[363718989,1748842272577,-384.64750559,0.00019999,2]
[363718990,1748842272587,-126296.77645319,0.00019999,2]
[363718991,1748842272602,-507.91,0.00019999,2]
[363718992,1748842272614,-1586.39999995,0.00019999,2]
[363718993,1748842272634,-323.99,0.00019452,2]
[363718994,1748842272643,-24108.91132382,0.00019999,2]
[363718995,1748842272664,-431.71573265,0.00019178,2]
[363718996,1748842272673,-860.878,0.00019959,2]
[363718997,1748842272683,-1474.20986557,0.00019999,2]
[363718998,1748842272694,-1144.90926115,0.00019999,2]
[363718999,1748842272706,-125075.02382508,0.00019999,2]
[363719000,1748842272717,-1186791.59628315,0.0002,2]
[363719001,1748842346758,319.5,0.00016934,2]
[363719003,1748842618272,316.72,0.00013699,2]
[363719004,1748842733022,120130.51,0.00018,2]
[363719005,1748842775535,1000.0,0.00018059,2]
[363719006,1748842901228,206.0,0.00018528,2]
[363719007,1748842942557,6128.96661397,0.00018517,2]
[363719008,1748843001686,1000.0,0.00018345,2]
[363719009,1748843084378,180.14,0.00018361,2]
[363719010,1748843239938,500.0,0.000189,6]
[363719012,1748843431893,-1000.0,0.00019059,2]
[363719013,1748843431904,-1200.0,0.00019077,2]
[363719014,1748843431915,-3018.65797479,0.00019078,2]
[363719015,1748843431926,-928.663573,0.00019078,2]
[363719016,1748843432010,-2737.28378383,0.00019078,2]
[363719019,1748843436179,172.67,0.0001899,2]
[363719023,1748843437772,-10373.0,0.00019078,2]
[363719024,1748843437829,-2492.67913916,0.00019078,2]
[363719025,1748843438046,-7064.63118085,0.00019078,2]
[363719213,1748843440177,-9411.16634837,0.00019078,2]
[363719215,1748843440188,-1000.0,0.00019078,2]
[363719217,1748843440198,-9187.231,0.00019078,2]
[363719219,1748843440208,-151.0,0.00019166,2]
[363719221,1748843440217,-151.0,0.00019166,2]
[363719223,1748843440227,-207.4,0.00019166,2]
[363719225,1748843440237,-159.14,0.00019168,2]
[363719227,1748843440247,-285.37,0.00019168,2]
[363719229,1748843440256,-500.0,0.00019173,2]
[363719231,1748843440266,-501.89823162,0.00019173,2]
[363719233,1748843440277,-500.0,0.00019173,2]
[363719235,1748843440286,-500.0,0.00019173,2]
[363719237,1748843440296,-500.0,0.00019173,2]
[363719239,1748843440306,-500.0,0.00019173,2]
[363719241,1748843440316,-500.0,0.00019173,2]
[363719244,1748843440326,-500.0,0.00019173,2]
[363719245,1748843440335,-297.43750599,0.00019177,2]
[363719247,1748843440344,-473.21743054,0.00019177,2]
[363719249,1748843440354,-500.0,0.00019177,2]
[363719251,1748843440363,-500.0,0.00019177,2]
[363719253,1748843440374,-500.0,0.00019177,2]
[363719255,1748843440383,-500.0,0.00019177,2]
[363719257,1748843440392,-487.3896491,0.00019177,2]
[363719259,1748843440402,-500.0,0.00019177,2]
[363719261,1748843440412,-500.0,0.00019177,2]
[363719264,1748843440423,-500.0,0.00019177,2]
[363719266,1748843440432,-500.0,0.00019177,2]
[363719268,1748843440442,-500.0,0.00019177,2]
[363719270,1748843440451,-500.0,0.00019177,2]
[363719271,1748843440461,-500.0,0.00019177,2]
[363719273,1748843440470,-500.0,0.00019177,2]
[363719275,1748843440479,-500.0,0.00019177,2]
[363719277,1748843440489,-500.0,0.00019177,2]
[363719279,1748843440499,-500.0,0.00019177,2]
[363719281,1748843440508,-500.0,0.00019177,2]
[363719283,1748843440518,-500.0,0.00019177,2]
[363719285,1748843440528,-535.418581,0.00019178,2]
[363719287,1748843440537,-535.418581,0.00019178,2]